bitfinex-derivatives/quotes_BTCF0:USTF0_20250510
["timestamp","ask_amount","ask_price","bid_price","bid_amount"]
[1746836598799,0.224039,103120.0,103110.0,0.72160892]
[1746836599697,0.224039,103120.0,103110.0,0.36080892]
[1746836601910,0.224039,103120.0,103110.0,0.37597014]
[1746836602114,0.224039,103120.0,103110.0,0.73677014]
[1746836602312,0.224039,103120.0,103110.0,0.37597014]
[1746836602510,0.224039,103120.0,103110.0,0.73677014]
[1746836602804,0.224039,103120.0,103110.0,0.18201224]
[1746836603205,0.234039,103120.0,103110.0,0.18201224]
[1746836603813,0.267039,103120.0,103110.0,0.18201243]
[1746836605414,0.267039,103120.0,103110.0,0.73677023]
[1746836605616,0.267039,103120.0,103110.0,0.54281233]
[1746836605914,0.234039,103120.0,103110.0,0.73677023]
[1746836606516,0.234039,103120.0,103110.0,0.18201216]
[1746836608322,0.234039,103120.0,103110.0,0.54281235]
[1746836608512,0.234039,103120.0,103110.0,0.18201235]
[1746836609920,0.234039,103120.0,103110.0,0.18201227]
[1746836610421,0.224039,103120.0,103110.0,1.06677017]
[1746836610632,0.224039,103120.0,103110.0,0.87677017]
[1746836610917,0.224039,103120.0,103110.0,1.05677017]
[1746836611119,0.224039,103120.0,103110.0,1.16511538]
[1746836611316,0.224039,103120.0,103110.0,1.05677017]
[1746836611914,0.224039,103120.0,103110.0,0.85677017]
[1746836612113,0.224039,103120.0,103110.0,0.73677017]
[1746836612318,0.224039,103120.0,103110.0,0.49597017]
[1746836612523,0.224039,103120.0,103110.0,0.85677017]
[1746836613023,0.224039,103120.0,103110.0,1.10677017]
[1746836613524,0.224039,103120.0,103110.0,0.89677017]
[1746836613926,0.224039,103120.0,103110.0,0.77677017]
[1746836614223,0.1939202,103130.0,103110.0,0.63978427]
[1746836614417,0.3238851,103130.0,103120.0,0.09343948]
[1746836614613,0.3238851,103130.0,103120.0,0.22163298]
[1746836615021,0.3238851,103130.0,103120.0,0.59011883]
[1746836615217,0.3238851,103130.0,103120.0,0.59011881]
[1746836615421,0.3238851,103130.0,103120.0,0.57495983]
[1746836615625,0.3238851,103130.0,103120.0,0.7569801]
[1746836615816,0.6838851,103130.0,103120.0,0.6469801]
[1746836616020,0.7170851,103130.0,103120.0,0.2861801]
[1746836616520,0.7170851,103130.0,103120.0,0.6469801]
[1746836616718,0.7170851,103130.0,103120.0,0.2861801]
[1746836617020,0.193939,103120.0,103110.0,0.00193967]
[1746836617328,0.1939767,103100.0,103090.0,0.19684417]
[1746836617516,1.02312191,103100.0,103090.0,0.19684417]
[1746836617822,1.11992191,103100.0,103090.0,0.29382327]
[1746836618026,0.1940143,103080.0,103070.0,0.26190344]
[1746836618326,1.04315951,103080.0,103070.0,0.26190344]
[1746836618529,1.13995951,103080.0,103070.0,0.26190344]
[1746836618828,1.13995951,103080.0,103070.0,0.26535344]
[1746836619727,1.13995951,103080.0,103070.0,0.26835344]
[1746836619926,1.13995951,103080.0,103070.0,0.27135344]
[1746836620128,1.13995951,103080.0,103070.0,0.02569155]
[1746836621126,1.0316143,103080.0,103070.0,0.02569155]
[1746836621327,1.13995951,103080.0,103070.0,0.02569155]
[1746836622727,1.13995951,103080.0,103070.0,0.02423639]
[1746836622928,1.0316143,103080.0,103070.0,0.02423639]
[1746836623329,1.0316143,103080.0,103070.0,0.19023639]
[1746836625422,1.0316143,103080.0,103070.0,0.22333639]
[1746836626026,1.0388843,103080.0,103070.0,0.22333639]
[1746836626628,1.14722951,103080.0,103070.0,0.22333639]
[1746836627325,1.0388843,103080.0,103070.0,0.22333639]
[1746836628034,1.14722951,103080.0,103070.0,0.22333639]
[1746836628423,1.0388843,103080.0,103070.0,0.22333639]
[1746836629236,1.0388843,103080.0,103070.0,0.22637012]
[1746836633231,1.0388843,103080.0,103070.0,0.25897012]
[1746836634526,1.14722951,103080.0,103070.0,0.25897012]
[1746836635330,1.14722951,103080.0,103070.0,0.22637012]
[1746836635636,1.14722951,103080.0,103070.0,0.19327012]
[1746836636228,1.14722951,103080.0,103070.0,0.02727012]
[1746836637929,1.14722951,103080.0,103070.0,3e-08]
[1746836637930,1.25557472,103080.0,103070.0,3e-08]
[1746836638139,1.3019003,103080.0,103070.0,3e-08]
[1746836638332,1.41024551,103080.0,103070.0,3e-08]
[1746836638835,1.51859072,103080.0,103070.0,3e-08]
[1746836640839,0.1940331,103070.0,103060.0,0.02690845]
[1746836641136,0.9889331,103070.0,103060.0,0.02690845]
[1746836641330,1.09727831,103070.0,103060.0,0.02690845]
[1746836642029,0.9889331,103070.0,103060.0,0.02990845]
[1746836642231,1.09727831,103070.0,103060.0,0.03290845]
[1746836642434,0.9889331,103070.0,103060.0,0.03290845]
[1746836642633,0.194052,103060.0,103050.0,0.03587845]
[1746836642837,1.33747721,103060.0,103050.0,5e-08]
[1746836643835,1.33747721,103060.0,103050.0,0.00500005]
[1746836644731,1.33747721,103060.0,103050.0,0.01000005]
[1746836645330,1.33747721,103060.0,103050.0,0.00800005]
[1746836645530,1.33747721,103060.0,103050.0,0.00600005]
[1746836647443,0.1940896,103040.0,103030.0,0.0941]
[1746836647633,1.04323481,103040.0,103030.0,0.0941]
[1746836647828,1.13663481,103040.0,103030.0,0.0941]
[1746836648034,1.0282896,103040.0,103030.0,0.0941]
[1746836648241,1.13663481,103040.0,103030.0,0.0941]
[1746836648941,1.0282896,103040.0,103030.0,0.0941]
[1746836649143,1.13663481,103040.0,103030.0,0.2601]
[1746836649440,1.13663481,103040.0,103030.0,0.27478012]
[1746836650045,1.13763481,103040.0,103030.0,0.27478012]
[1746836650250,1.13763481,103040.0,103030.0,0.27781502]
[1746836650635,1.0292896,103040.0,103030.0,0.27781502]
[1746836650836,1.14063481,103040.0,103030.0,0.27781502]
[1746836651840,0.9689896,103040.0,103030.0,0.27781502]
[1746836652044,0.2080896,103040.0,103030.0,1.03812312]
[1746836652246,0.1980896,103040.0,103030.0,1.03812312]
[1746836652440,0.004,103040.0,103030.0,1.36812312]
[1746836652641,0.1980896,103040.0,103030.0,1.25977791]
[1746836652842,0.1980896,103040.0,103030.0,1.36812312]
[1746836653343,0.1980896,103040.0,103030.0,0.38486941]
[1746836654150,0.51643481,103040.0,103030.0,0.37486941]
[1746836654454,0.90763481,103040.0,103030.0,0.27781502]
[1746836654744,0.93993481,103040.0,103030.0,0.27781502]
[1746836654949,0.8315896,103040.0,103030.0,0.27781502]
[1746836655150,0.4707896,103040.0,103030.0,0.27781502]
[1746836655351,0.8315896,103040.0,103030.0,0.27781502]
[1746836655751,0.69763481,103040.0,103030.0,0.27781502]
[1746836655945,0.99793481,103040.0,103030.0,0.27781502]
[1746836656251,0.8895896,103040.0,103030.0,0.27781502]
[1746836656749,0.99793481,103040.0,103030.0,0.27781502]
[1746836657444,0.8895896,103040.0,103030.0,0.27781502]
[1746836657754,0.8288896,103040.0,103030.0,0.27781502]
[1746836658049,0.8601896,103040.0,103030.0,0.27781502]
[1746836664668,0.6601896,103040.0,103030.0,0.27781502]
[1746836665964,1.03853481,103040.0,103030.0,0.27781502]
[1746836666169,1.10073481,103040.0,103030.0,0.27781502]
[1746836667859,1.09973481,103040.0,103030.0,0.27781502]
[1746836668065,1.10273481,103040.0,103030.0,0.27781502]
[1746836668872,0.9943896,103040.0,103030.0,0.27781502]
[1746836669172,1.10273481,103040.0,103030.0,0.27781502]
[1746836670774,1.10273481,103040.0,103030.0,0.24711502]
[1746836672275,0.9943896,103040.0,103030.0,0.24711502]
[1746836672476,1.10273481,103040.0,103030.0,0.24711502]
[1746836674978,0.9943896,103040.0,103030.0,0.24711502]
[1746836675279,1.22602704,103040.0,103030.0,0.24711502]
[1746836676573,1.23329704,103040.0,103030.0,0.24711502]
[1746836676880,1.12495183,103040.0,103030.0,0.24711502]
[1746836677082,1.23329704,103040.0,103030.0,0.24711502]
[1746836679382,1.12495183,103040.0,103030.0,0.24711502]
[1746836679577,1.23329704,103040.0,103030.0,0.24711502]
[1746836680277,1.25742606,103040.0,103030.0,0.24711502]
[1746836681584,1.44254606,103040.0,103030.0,0.24711502]
[1746836683078,1.14908085,103040.0,103030.0,0.24711502]
[1746836683275,0.94160085,103040.0,103030.0,0.34416941]
[1746836683474,1.04994606,103040.0,103030.0,0.48416941]
[1746836683676,1.03994606,103040.0,103030.0,0.34416941]
[1746836684078,1.41234606,103040.0,103030.0,0.34416941]
[1746836685684,1.37526668,103040.0,103030.0,0.34416941]
[1746836685886,1.44653251,103040.0,103030.0,0.21581502]
[1746836686477,1.44653251,103040.0,103030.0,0.24611502]
[1746836687687,1.41260763,103040.0,103030.0,0.24611502]
[1746836689589,1.30400085,103040.0,103030.0,0.24611502]
[1746836689981,1.41260763,103040.0,103030.0,0.24611502]
[1746836695796,1.30400085,103040.0,103030.0,0.24611502]
[1746836696084,0.99400085,103040.0,103030.0,0.34611502]
[1746836696488,1.30400085,103040.0,103030.0,0.24611502]
[1746836696684,1.41260763,103040.0,103030.0,0.24611502]
[1746836697277,1.38899053,103040.0,103030.0,0.24611502]
[1746836699496,1.20427053,103040.0,103030.0,0.24611502]
[1746836699790,1.38171053,103040.0,103030.0,0.24611502]
[1746836701190,1.38171053,103040.0,103030.0,0.21581502]
[1746836701585,1.38171053,103040.0,103030.0,0.24611502]
[1746836703999,1.40532763,103040.0,103030.0,0.24611502]
[1746836705494,1.29672085,103040.0,103030.0,0.24611502]
[1746836705695,1.40532763,103040.0,103030.0,0.24611502]
[1746836707298,1.40532763,103040.0,103030.0,0.21581502]
[1746836707595,0.1941085,103030.0,103020.0,0.00397962]
[1746836707790,1.14211932,103030.0,103020.0,0.00397962]
[1746836707985,0.7795085,103030.0,103020.0,0.00397962]
[1746836708186,1.05081391,103030.0,103020.0,0.23257962]
[1746836708793,1.05181391,103030.0,103020.0,0.23257962]
[1746836709495,1.22721391,103030.0,103020.0,0.23257962]
[1746836709696,1.22821391,103030.0,103020.0,0.23257962]
[1746836709890,1.22821391,103030.0,103020.0,0.24715678]
[1746836711597,1.22821391,103030.0,103020.0,0.21485678]
[1746836712796,1.37563516,103030.0,103020.0,0.21485678]
[1746836713297,1.38290516,103030.0,103020.0,0.21485678]
[1746836713699,1.45421057,103030.0,103020.0,0.18455678]
[1746836713889,1.38290516,103030.0,103020.0,0.18455678]
[1746836714592,1.38290516,103030.0,103020.0,0.24595678]
[1746836715489,1.38290516,103030.0,103020.0,0.21495678]
[1746836717188,1.38590516,103030.0,103020.0,0.21495678]
[1746836718793,1.38490516,103030.0,103020.0,0.21495678]
[1746836719104,1.38890516,103030.0,103020.0,0.21495678]
[1746836719498,1.38890516,103030.0,103020.0,0.18455678]
[1746836719697,1.46021057,103030.0,103020.0,0.18455678]
[1746836719888,1.38890516,103030.0,103020.0,0.18455678]
[1746836720286,1.46021057,103030.0,103020.0,0.18759221]
[1746836721099,1.38890516,103030.0,103020.0,0.18759221]
[1746836721398,1.46021057,103030.0,103020.0,0.18759221]
[1746836723492,1.46021057,103030.0,103020.0,0.17301505]
[1746836724798,1.31759975,103030.0,103020.0,0.17301505]
[1746836725198,1.38890516,103030.0,103020.0,0.20461505]
[1746836725398,1.46021057,103030.0,103020.0,0.20461505]
[1746836726100,1.46021057,103030.0,103020.0,0.17301505]
[1746836727506,1.31278932,103030.0,103020.0,0.17301505]
[1746836728406,1.24148391,103030.0,103020.0,0.17301505]
[1746836728599,1.24148391,103030.0,103020.0,0.20411505]
[1746836728800,1.31278932,103030.0,103020.0,0.20411505]
[1746836729000,1.24148391,103030.0,103020.0,0.20411505]
[1746836729609,1.31278932,103030.0,103020.0,0.20411505]
[1746836732509,1.1701785,103030.0,103020.0,0.20411505]
[1746836732711,1.31278932,103030.0,103020.0,0.20411505]
[1746836733211,1.31278932,103030.0,103020.0,0.20427335]
[1746836733403,1.34518932,103030.0,103020.0,0.20427335]
[1746836733711,1.34518932,103030.0,103020.0,0.17317335]
[1746836734415,1.24814482,103030.0,103000.0,0.1]
[1746836734621,0.98705151,103010.0,103000.0,0.1975]
[1746836734922,1.50789151,103010.0,103000.0,0.1975]
[1746836735220,1.57219151,103010.0,103000.0,0.3635]
[1746836735715,1.5008861,103010.0,103000.0,0.3635]
[1746836735916,1.57219151,103010.0,103000.0,0.3635]
[1746836736117,1.57319151,103010.0,103000.0,0.3635]
[1746836738326,1.60429151,103010.0,103000.0,0.3783349]
[1746836739020,1.75261581,103010.0,103000.0,0.3783349]
[1746836740024,1.75989581,103010.0,103000.0,0.3783349]
[1746836744917,1.69689581,103010.0,103000.0,0.3783349]
[1746836745726,1.58474217,103010.0,103000.0,0.3783349]
[1746836746033,0.24529066,103010.0,103000.0,1.10797197]
[1746836746231,0.92398997,103030.0,103010.0,0.2426671]
[1746836746528,0.56318147,103030.0,103020.0,0.07130541]
[1746836746831,0.56318147,103030.0,103020.0,0.48230541]
[1746836747131,0.36907297,103030.0,103020.0,0.64546767]
[1746836747326,0.36907297,103030.0,103020.0,1.2004002]
[1746836747631,0.56318147,103030.0,103020.0,1.1804002]
[1746836748022,0.56318147,103030.0,103020.0,0.9862729]
[1746836748224,0.1941085,103030.0,103020.0,1.1562729]
[1746836748424,0.1961085,103030.0,103020.0,1.1562729]
[1746836748623,0.1961085,103030.0,103020.0,1.0592089]
[1746836749330,0.1941085,103030.0,103020.0,1.0592089]
[1746836749531,0.1941085,103030.0,103020.0,1.1200089]
[1746836749733,0.1941085,103030.0,103020.0,0.87870349]
[1746836750831,0.78278884,103040.0,103020.0,0.97576419]
[1746836751027,0.37346284,103040.0,103030.0,0.6201085]
[1746836751228,0.37346284,103040.0,103030.0,0.92469728]
[1746836751531,0.00727,103040.0,103030.0,1.45175328]
[1746836751738,0.00727,103040.0,103030.0,1.56386234]
[1746836752038,0.20494506,103050.0,103040.0,0.1940896]
[1746836752335,0.20494506,103050.0,103040.0,1.53203838]
[1746836752534,0.20494506,103050.0,103040.0,1.62908237]
[1746836752736,0.20494506,103050.0,103040.0,1.72613676]
[1746836753130,0.20494506,103050.0,103040.0,1.89213676]
[1746836753529,0.20694506,103050.0,103040.0,1.89213676]
[1746836754735,0.20894506,103050.0,103040.0,1.78354798]
[1746836754935,0.20894506,103050.0,103040.0,1.89213676]
[1746836755437,0.20894506,103050.0,103040.0,1.64213676]
[1746836755937,0.20894506,103050.0,103040.0,1.33945838]
[1746836756138,0.20894506,103050.0,103040.0,1.53354798]
[1746836756642,0.20894506,103050.0,103040.0,1.43650399]
[1746836757235,0.20894506,103050.0,103040.0,1.54509277]
[1746836762238,0.20894506,103050.0,103040.0,1.64213676]
[1746836762643,0.20894506,103050.0,103040.0,1.62213676]
[1746836763043,0.20894506,103050.0,103040.0,1.51354798]
[1746836763234,0.20894506,103050.0,103040.0,1.62213676]
[1746836763435,0.20894506,103050.0,103040.0,1.42804716]
[1746836763631,0.24054506,103050.0,103040.0,1.42804716]
[1746836764242,0.24054506,103050.0,103040.0,1.62213676]
[1746836764545,0.24054506,103050.0,103040.0,1.52509277]
[1746836765441,0.24054506,103050.0,103040.0,1.33100317]
[1746836765644,0.44054506,103050.0,103040.0,0.53161439]
[1746836765946,0.47314506,103050.0,103040.0,0.88161439]
[1746836766133,0.47314506,103050.0,103040.0,1.24241439]
[1746836767344,0.47314506,103050.0,103040.0,1.21161439]
[1746836767542,0.58173384,103050.0,103040.0,0.26305439]
[1746836767749,0.47314506,103050.0,103040.0,0.26305439]
[1746836768051,0.47314506,103050.0,103040.0,0.65405439]
[1746836769951,0.47314506,103050.0,103040.0,0.29325439]
[1746836770246,0.94253384,103050.0,103040.0,0.26305439]
[1746836770452,0.58173384,103050.0,103040.0,0.26305439]
[1746836771941,0.94253384,103050.0,103040.0,0.26305439]
[1746836772747,0.94253384,103050.0,103040.0,0.26608895]
[1746836774353,0.94253384,103050.0,103040.0,0.16903456]
[1746836775744,0.90520466,103050.0,103040.0,0.16903456]
[1746836776145,0.83394506,103050.0,103040.0,0.16903456]
[1746836776551,0.90520466,103050.0,103040.0,0.16903456]
[1746836776853,0.47314506,103050.0,103040.0,0.24029416]
[1746836777044,0.27314506,103050.0,103040.0,0.24029416]
[1746836777246,0.07906036,103050.0,103040.0,1.37448834]
[1746836777452,0.04646036,103050.0,103040.0,1.37145378]
[1746836777759,0.24053116,103050.0,103040.0,1.38373216]
[1746836777955,0.24053116,103050.0,103040.0,1.38373222]
[1746836778558,0.23853116,103050.0,103040.0,1.38573222]
[1746836778749,0.23653116,103050.0,103040.0,1.38573222]
[1746836778949,0.26823116,103050.0,103040.0,1.38773222]
[1746836779148,0.26823116,103050.0,103040.0,0.70311575]
[1746836779350,0.40823116,103050.0,103040.0,0.86232498]
[1746836779760,0.40823116,103050.0,103040.0,1.24232498]
[1746836780058,0.40823116,103050.0,103040.0,1.18032498]
[1746836780651,0.3973708,103050.0,103040.0,1.18032498]
[1746836780852,0.3973708,103050.0,103040.0,1.19540459]
[1746836781158,0.3973708,103050.0,103040.0,1.21540459]
[1746836781657,0.3973708,103050.0,103040.0,0.87540556]
[1746836781853,0.3973708,103050.0,103040.0,0.82912498]
[1746836785555,1.07669767,103050.0,103040.0,0.29404498]
[1746836785754,1.07669767,103050.0,103040.0,0.197]
[1746836786058,0.9681708,103050.0,103040.0,0.166]
[1746836788858,1.07669767,103050.0,103040.0,0.166]
[1746836789757,1.07669767,103050.0,103040.0,0.1989]
[1746836790258,0.9681708,103050.0,103040.0,0.1989]
[1746836793465,1.07669767,103050.0,103040.0,0.1989]
[1746836794164,0.9681708,103050.0,103040.0,0.1989]
[1746836794566,0.9681708,103050.0,103040.0,0.231]
[1746836795666,0.6073708,103050.0,103040.0,0.231]
[1746836799259,0.2256708,103050.0,103040.0,0.59937185]
[1746836799562,0.1940708,103050.0,103040.0,1.40426145]
[1746836799867,0.1940708,103050.0,103040.0,1.21017185]
[1746836800063,0.1940708,103050.0,103040.0,1.10164498]
[1746836800266,0.1940708,103050.0,103040.0,1.21017185]
[1746836802463,0.1940708,103050.0,103040.0,1.10164498]
[1746836802670,0.1940708,103050.0,103040.0,1.21017185]
[1746836802965,0.1940708,103050.0,103040.0,1.22526207]
[1746836805269,0.1940708,103050.0,103040.0,1.41935167]
[1746836806367,0.1940708,103050.0,103040.0,1.22525644]
[1746836806572,0.1940708,103050.0,103040.0,1.32230043]
[1746836808073,0.1940708,103050.0,103040.0,1.32229836]
[1746836810073,0.1940708,103050.0,103040.0,1.32229577]
[1746836811771,0.1940708,103050.0,103040.0,1.32229266]
[1746836813076,0.1940708,103050.0,103040.0,1.22524867]
[1746836813375,0.1940708,103050.0,103040.0,1.32229266]
[1746836815071,0.2013408,103050.0,103040.0,1.32229266]
[1746836815673,0.2013408,103050.0,103040.0,1.35620527]
[1746836815976,0.2323408,103050.0,103040.0,1.35620527]
[1746836816573,0.2323408,103050.0,103040.0,1.18794154]
[1746836816772,0.3168408,103050.0,103040.0,0.66804498]
[1746836817275,0.3168408,103050.0,103040.0,0.63594498]
[1746836817675,0.3168408,103050.0,103040.0,0.99674498]
[1746836820983,0.3168408,103050.0,103040.0,1.10529947]
[1746836821176,0.3168408,103050.0,103040.0,1.13729947]
[1746836825485,0.3168408,103050.0,103040.0,1.15238423]
[1746836825675,0.3168408,103050.0,103040.0,1.04382974]
[1746836825874,0.3168408,103050.0,103040.0,1.13729947]
[1746836826074,0.3168408,103050.0,103040.0,1.02874498]
[1746836826488,0.3168408,103050.0,103040.0,1.04383097]
[1746836827076,0.3168408,103050.0,103040.0,0.81238546]
[1746836827376,0.3168408,103050.0,103040.0,0.78038546]
[1746836827781,0.3168408,103050.0,103040.0,1.12038546]
[1746836828083,0.3168408,103050.0,103040.0,0.67183097]
[1746836828383,0.3168408,103050.0,103040.0,0.67183409]
[1746836828782,0.3168408,103050.0,103040.0,1.01183409]
[1746836829084,0.3168408,103050.0,103040.0,0.67183409]
[1746836830587,0.3168408,103050.0,103040.0,0.67183645]
[1746836831086,0.3168408,103050.0,103040.0,0.31103645]
[1746836831287,0.3168408,103050.0,103040.0,1.02183645]
[1746836831688,0.3168408,103050.0,103040.0,1.00674498]
[1746836831888,0.3168408,103050.0,103040.0,1.0218344]
[1746836834592,0.3168408,103050.0,103040.0,1.1842344]
[1746836835393,0.3168408,103050.0,103040.0,1.18423342]
[1746836836102,0.3168408,103050.0,103040.0,1.21463342]
[1746836836301,0.3168408,103050.0,103040.0,1.02183342]
[1746836836491,0.72539529,103050.0,103040.0,0.27813342]
[1746836836895,0.72539529,103050.0,103040.0,0.26304498]
[1746836837505,0.6168408,103050.0,103040.0,0.26304498]
[1746836839303,0.4288408,103050.0,103040.0,0.29574498]
[1746836840405,0.4308408,103050.0,103040.0,0.29574498]
[1746836841709,0.4308408,103050.0,103040.0,0.61574498]
[1746836842509,0.4308408,103050.0,103040.0,0.29574498]
[1746836843109,0.4308408,103050.0,103040.0,0.67574498]
[1746836843311,0.4308408,103050.0,103040.0,0.69077964]
[1746836843511,0.4308408,103050.0,103040.0,0.72337964]
[1746836843811,0.4308408,103050.0,103040.0,0.79461841]
[1746836844212,0.4308408,103050.0,103040.0,0.82551841]
[1746836844412,0.3008408,103050.0,103040.0,0.82551841]
[1746836845012,0.3008408,103050.0,103040.0,1.18631841]
[1746836845613,0.3008408,103050.0,103040.0,1.11507964]
[1746836846114,0.3008408,103050.0,103040.0,0.67157964]
[1746836846615,0.73207957,103050.0,103040.0,0.27808793]
[1746836846911,0.73207957,103050.0,103040.0,0.26304498]
[1746836849616,1.09287957,103050.0,103040.0,0.26304498]
[1746836849807,1.09287957,103050.0,103040.0,0.29624498]
[1746836850119,1.09287957,103050.0,103040.0,0.29927957]
[1746836850617,1.09287957,103050.0,103040.0,0.26607957]
[1746836851315,0.73207957,103050.0,103040.0,0.26607957]
[1746836851513,0.6608408,103050.0,103040.0,0.29927957]
[1746836851716,1.09287957,103050.0,103040.0,0.29624498]
[1746836852819,1.09287957,103050.0,103040.0,0.26304498]
[1746836856420,1.09287957,103050.0,103040.0,0.29484498]
[1746836856619,1.09287957,103050.0,103040.0,0.26304498]
[1746836856822,1.09287957,103050.0,103040.0,0.166]
[1746836857023,1.09287957,103050.0,103040.0,0.16903457]
[1746836858816,1.25227957,103050.0,103040.0,0.16903457]
[1746836859617,0.89147957,103050.0,103040.0,0.16903457]
[1746836859824,1.25227957,103050.0,103040.0,0.16903457]
[1746836860025,1.39956926,103050.0,103040.0,0.16903457]
[1746836866128,1.32833049,103050.0,103040.0,0.16903457]
[1746836866324,1.32833049,103050.0,103040.0,0.20193457]
[1746836866625,1.39956926,103050.0,103040.0,0.20193457]
[1746836870837,1.32833049,103050.0,103040.0,0.20193457]
[1746836871129,1.39956926,103050.0,103040.0,0.20193457]
[1746836871733,1.32833049,103050.0,103040.0,0.20193457]
[1746836871931,1.39956926,103050.0,103040.0,0.20193457]
[1746836887439,1.03876926,103050.0,103040.0,0.20193457]
[1746836887744,1.39956926,103050.0,103040.0,0.20193457]
[1746836902258,1.39956926,103050.0,103040.0,0.16903457]
[1746836902756,1.49661326,103050.0,103040.0,0.16903457]
[1746836903856,1.49461326,103050.0,103040.0,0.16903457]
[1746836904056,1.49761326,103050.0,103040.0,0.16903457]
[1746836904354,1.49561326,103050.0,103040.0,0.16903457]
[1746836904657,1.49861326,103050.0,103040.0,0.16903457]
[1746836905355,1.52336396,103050.0,103040.0,0.16903457]
[1746836908166,1.35132357,103050.0,103040.0,0.16903457]
[1746836908970,1.35132357,103050.0,103040.0,0.20163457]
[1746836909558,1.25427957,103050.0,103040.0,0.20163457]
[1746836909871,1.1830408,103050.0,103040.0,0.20163457]
[1746836910070,1.25427957,103050.0,103040.0,0.20163457]
[1746836912366,0.8219208,103050.0,103040.0,0.20163457]
[1746836912559,0.8919208,103050.0,103040.0,0.26323457]
[1746836912756,0.8219208,103050.0,103040.0,0.26323457]
[1746836912962,1.2019208,103050.0,103040.0,0.26323457]
[1746836913163,1.27315957,103050.0,103040.0,0.26323457]
[1746836914074,1.2019208,103050.0,103040.0,0.26323457]
[1746836914367,1.27315957,103050.0,103040.0,0.26323457]
[1746836914560,1.42153521,103050.0,103040.0,0.26323457]
[1746836915168,0.82751644,103050.0,103040.0,0.33447334]
[1746836915372,0.98571644,103050.0,103040.0,0.33447334]
[1746836915668,0.79651644,103050.0,103040.0,0.43151832]
[1746836915868,0.79651644,103050.0,103040.0,0.36027955]
[1746836916069,0.79651644,103050.0,103040.0,0.70027955]
[1746836916264,0.79651644,103050.0,103040.0,0.35724498]
[1746836917166,0.43371644,103050.0,103040.0,0.35724498]
[1746836917367,0.46661644,103050.0,103040.0,0.35724498]
[1746836917772,0.46361644,103050.0,103040.0,0.36027955]
[1746836918275,0.46361644,103050.0,103040.0,0.35724498]
[1746836918475,0.38361644,103050.0,103040.0,0.35724498]
[1746836919072,0.2352408,103050.0,103040.0,0.35724498]
[1746836919775,0.5960408,103050.0,103040.0,0.35724498]
[1746836920276,0.6260408,103050.0,103040.0,0.36027961]
[1746836920876,1.03727957,103050.0,103040.0,0.36027961]
[1746836921079,1.09877957,103050.0,103040.0,0.36027961]
[1746836922877,1.0275408,103050.0,103040.0,0.36027961]
[1746836923084,1.09877957,103050.0,103040.0,0.36027961]
[1746836925477,0.73797957,103050.0,103040.0,0.36027961]
[1746836925778,1.09877957,103050.0,103040.0,0.36027961]
[1746836930383,0.73797957,103050.0,103040.0,0.36027961]
[1746836930578,1.09877957,103050.0,103040.0,0.36027961]
[1746836934684,1.0275408,103050.0,103040.0,0.36027961]
[1746836934878,1.09877957,103050.0,103040.0,0.36027961]
[1746836938577,1.09877957,103050.0,103040.0,0.16903463]
[1746836941779,0.0485325,103020.0,103000.0,0.47709111]
[1746836941984,1.060531,103020.0,103010.0,0.063]
[1746836942188,1.156931,103020.0,103010.0,0.32604498]
[1746836942388,1.156931,103020.0,103010.0,0.229]
[1746836942581,1.156931,103020.0,103010.0,0.32607324]
[1746836942778,1.156931,103020.0,103010.0,0.29507324]
[1746836942980,1.22916977,103020.0,103010.0,0.31003505]
[1746836943282,1.30040854,103020.0,103010.0,0.166]
[1746836943586,1.315571,103020.0,103010.0,0.166]
[1746836944088,1.45804854,103020.0,103010.0,0.166]
[1746836944387,1.45804854,103020.0,103010.0,0.176]
[1746836944684,1.38680977,103020.0,103010.0,0.176]
[1746836945389,1.45804854,103020.0,103010.0,0.172]
[1746836945585,1.45804854,103020.0,103010.0,0.173]
[1746836945785,1.45704854,103020.0,103010.0,0.169]
[1746836946790,1.314571,103020.0,103010.0,0.169]
[1746836946987,1.164211,103020.0,103010.0,0.24023877]
[1746836947182,0.9336754,103020.0,103010.0,0.2022]
[1746836947489,0.9336754,103020.0,103010.0,0.2325]
[1746836948889,0.9336754,103020.0,103010.0,0.32957324]
[1746836950190,0.9336754,103020.0,103010.0,0.40081201]
[1746836950191,0.3663398,103020.0,103010.0,0.40081201]
[1746836950382,0.3663398,103020.0,103010.0,0.32957324]
[1746836950584,0.3463398,103020.0,103010.0,0.32957324]
[1746836952091,0.3463398,103020.0,103010.0,0.69037324]
[1746836952293,0.3463398,103020.0,103010.0,0.32957324]
[1746836954384,0.3463398,103020.0,103010.0,0.33260863]
[1746836955382,0.3663398,103020.0,103010.0,0.33260863]
[1746836957501,0.79837857,103020.0,103010.0,0.33260863]
[1746836957694,0.43757857,103020.0,103010.0,0.33260863]
[1746836957992,0.89699416,103020.0,103010.0,0.33260863]
[1746836958399,0.53619416,103020.0,103010.0,0.33260863]
[1746836960097,0.41642289,103020.0,103010.0,0.4038474]
[1746836960292,0.41642289,103020.0,103010.0,0.5638474]
[1746836960494,0.38372289,103020.0,103010.0,0.5638474]
[1746836960690,0.38372289,103020.0,103010.0,0.49260863]
[1746836960994,0.45496166,103020.0,103010.0,0.48957324]
[1746836961496,0.38372289,103020.0,103010.0,0.48957324]
[1746836961700,0.45496166,103020.0,103010.0,0.32957324]
[1746836962093,0.45496166,103020.0,103010.0,0.33260862]
[1746836962401,0.38372289,103020.0,103010.0,0.33260862]
[1746836962605,0.45496166,103020.0,103010.0,0.33260862]
[1746836964200,0.79576166,103020.0,103010.0,0.20523538]
[1746836964402,1.15576166,103020.0,103010.0,0.20523538]
[1746836965197,1.08452289,103020.0,103010.0,0.20523538]
[1746836965400,1.15576166,103020.0,103010.0,0.23533538]
[1746836966196,1.15576166,103020.0,103010.0,0.20523538]
[1746836966398,1.15576166,103020.0,103010.0,0.17203538]
[1746836966601,1.15576166,103020.0,103010.0,0.20463538]
[1746836967799,1.18041556,103020.0,103010.0,0.20463538]
[1746836970100,1.10917679,103020.0,103010.0,0.20463538]
[1746836970295,1.18041556,103020.0,103010.0,0.20463538]
[1746836970707,1.32833895,103020.0,103010.0,0.17203538]
[1746836971602,1.33033895,103020.0,103010.0,0.17003538]
[1746836973499,1.40157772,103020.0,103010.0,0.17003538]
[1746836973807,1.40457772,103020.0,103010.0,0.16903538]
[1746836974304,1.28130823,103020.0,103010.0,0.16903538]
[1746836978097,1.21006946,103020.0,103010.0,0.16903538]
[1746836979004,1.28130823,103020.0,103010.0,0.16903538]
[1746836979202,1.21006946,103020.0,103010.0,0.16903538]
[1746836979507,1.21006946,103020.0,103010.0,0.20113538]
[1746836980007,1.28130823,103020.0,103010.0,0.20113538]
[1746836980399,1.21006946,103020.0,103010.0,0.20113538]
[1746836982709,1.20706946,103020.0,103010.0,0.20113538]
[1746836983009,1.13883069,103020.0,103010.0,0.20113538]
[1746836983196,1.21006946,103020.0,103010.0,0.20113538]
[1746836983401,1.20806946,103020.0,103010.0,0.20113538]
[1746836983597,1.21006946,103020.0,103010.0,0.20113538]
[1746836983808,1.17173069,103020.0,103010.0,0.20113538]
[1746836984009,1.24296946,103020.0,103010.0,0.20113538]